[Event "FIDE Open Sachove Univerzity QCC"]
[Site "Ceske Budejovice"]
[Date "2020.07.03"]
[Round "3.16"]
[White "Stary, Vojtech"]
[Black "Sobotka, Radim"]
[Result "0-1"]
[ECO "B01"]
[WhiteElo "1422"]
[BlackElo "1764"]
[Annotator "NA"]
[PlyCount "162"]
[EventDate "2020.07.01"]
[EventType "swiss"]
[EventCountry "CZE"]
[SourceTitle "playchess.com"]
[Source "ChessBase"]
[SourceQuality "1"]
[TimeControl "40/5400+30:1800+30"]

1. e4 {[%emt 0:00:00]} d5 {[%emt 0:33:17]} 2. exd5 {[%emt 0:00:00]} Qxd5 {[%emt 0:00:00]} 3. Nc3 {[%emt 0:02:09]} Qa5 {[%emt 0:00:00]} 4. Nf3 {[%emt 0:00:30]} c6 {[%emt 0:00:22]} 5. d4 {[%emt 0:00:30]} Bf5 {[%emt 0:00:30]} 6. Bd2 {[%emt 0:00:30]} e6 {[%emt 0:00:30]} 7. Bc4 {[%emt 0:00:35]} Nd7 {[%emt 0:01:33]} 8. O-O {[%emt 0:05:21]} Ngf6 {[%emt 0:00:17]} 9. Nd5 {[%emt 0:01:13]} Qd8 {[%emt 0:00:13]} 10. Nxf6+ {[%emt 0:01:21]} Nxf6 {[%emt 0:00:05]} 11. c3 {[%emt 0:02:58]} Bd6 {[%emt 0:02:19]} 12. Re1 {[%emt 0:07:29]} O-O {[%emt 0:01:28]} 13. Bg5 {[%emt 0:01:48]} Be7 {[%emt 0:02:27]} 14. Ne5 {[%emt 0:03:02]} Nd7 {[%emt 0:00:48]} 15. Nxd7 {[%emt 0:00:52]} Qxd7 {[%emt 0:00:02]} 16. Bxe7 {[%emt 0:00:11]} Qxe7 {[%emt 0:00:05]} 17. Bd3 {[%emt 0:01:20]} Bxd3 {[%emt 0:00:19]} 18. Qxd3 {[%emt 0:00:09]} Rfd8 {[%emt 0:00:32]} 19. Qc2 {[%emt 0:01:05]} Rd5 {[%emt 0:00:59]} 20. Rad1 {[%emt 0:04:06]} Rad8 {[%emt 0:00:41]} 21. Qe2 {[%emt 0:05:14]} Qd7 {[%emt 0:02:23]} 22. Rc1 {[%emt 0:04:15]} c5 {[%emt 0:03:16]} 23. dxc5 {[%emt 0:00:51]} Rd2 {[%emt 0:00:35]} 24. Qg4 {[%emt 0:04:51]} Rxb2 {[%emt 0:00:52]} 25. Rcd1 {[%emt 0:00:33]} Rd2 {[%emt 0:01:08]} 26. Rxd2 {[%emt 0:04:08]} Qxd2 {[%emt 0:00:10]} 27. Qe4 {[%emt 0:02:46]} Qxc3 {[%emt 0:02:57]} 28. Qe3 {[%emt 0:01:34]} Qxe3 {[%emt 0:08:13]} 29. fxe3 {[%emt 0:00:17]} Kf8 {[%emt 0:00:10]} 30. Rb1 {[%emt 0:00:24]} Rd7 {[%emt 0:01:09]} 31. Kf2 {[%emt 0:01:17]} Rc7 {[%emt 0:01:56]} 32. Kf3 {[%emt 0:00:22]} Ke7 {[%emt 0:00:50]} 33. Ke4 {[%emt 0:00:14]} Rd7 {[%emt 0:01:41]} 34. Rb2 {[%emt 0:01:27]} g5 {[%emt 0:02:16]} 35. Rc2 {[%emt 0:01:10]} f5+ {[%emt 0:00:27]} 36. Kf3 {[%emt 0:00:23]} Rc7 {[%emt 0:00:57]} 37. e4 {[%emt 0:01:21]} Kf6 {[%emt 0:04:39]} 38. h3 {[%emt 0:02:48]} b6 {[%emt 0:01:48]} 39. c6 {[%emt 0:01:29]} Ke5 {[%emt 0:01:24]} 40. exf5 {[%emt 0:01:10]} exf5 {[%emt 0:00:03]} 41. Rd2 {[%emt 0:31:02]} Rxc6 {[%emt 0:30:47]} 42. Rd7 {[%emt 0:00:06]} Rc3+ {[%emt 0:00:38]} 43. Kf2 {[%emt 0:00:14]} Rc2+ {[%emt 0:00:05]} 44. Kf3 {[%emt 0:00:15]} Rxa2 {[%emt 0:00:05]} 45. Rxh7 {[%emt 0:00:08]} b5 {[%emt 0:01:21]} 46. Rc7 {[%emt 0:00:44]} Kd6 {[%emt 0:01:02]} 47. Rg7 {[%emt 0:00:27]} Ra3+ {[%emt 0:05:38]} 48. Kf2 {[%emt 0:00:14]} b4 {[%emt 0:03:33]} 49. Rxg5 {[%emt 0:00:40]} Ke6 {[%emt 0:03:43]} 50. Rg8 {[%emt 0:03:48]} a5 {[%emt 0:02:01]} 51. Ra8 {[%emt 0:01:46]} a4 {[%emt 0:00:38]} 52. Ra6+ {[%emt 0:00:09]} Kf7 {[%emt 0:00:19]} 53. Ra7+ {[%emt 0:00:40]} Kf6 {[%emt 0:00:44]} 54. Ra6+ {[%emt 0:00:05]} Kg5 {[%emt 0:01:00]} 55. Ke1 {[%emt 0:02:31]} Ra1+ {[%emt 0:01:58]} 56. Kd2 {[%emt 0:00:24]} Ra2+ {[%emt 0:01:23]} 57. Kc1 {[%emt 0:00:23]} Rxg2 {[%emt 0:01:24]} 58. Rxa4 {[%emt 0:00:09]} Rh2 {[%emt 0:01:11]} 59. Rxb4 {[%emt 0:00:11]} Rxh3 {[%emt 0:00:10]} 60. Kd2 {[%emt 0:00:21]} Rh4 {[%emt 0:02:33]} 61. Rb8 {[%emt 0:01:27]} Re4 {[%emt 0:00:13]} 62. Rg8+ {[%emt 0:01:22]} Kf4 {[%emt 0:00:20]} 63. Rh8 {[%emt 0:01:59]} Kg3 {[%emt 0:01:37]} 64. Rg8+ {[%emt 0:03:51]} Kf3 {[%emt 0:00:11]} 65. Rg5 {[%emt 0:02:47]} f4 {[%emt 0:00:23]} 66. Rf5 {[%emt 0:01:33]} Re8 {[%emt 0:00:21]} 67. Rf6 {[%emt 0:00:19]} Kg3 {[%emt 0:00:11]} 68. Rf7 {[%emt 0:01:03]} f3 {[%emt 0:00:18]} 69. Rg7+ {[%emt 0:01:47]} Kf2 {[%emt 0:00:02]} 70. Rf7 {[%emt 0:00:46]} Rd8+ {[%emt 0:00:03]} 71. Kc2 {[%emt 0:00:27]} Kg2 {[%emt 0:00:22]} 72. Rg7+ {[%emt 0:00:44]} Kf1 {[%emt 0:00:03]} 73. Rf7 {[%emt 0:00:17]} f2 {[%emt 0:00:08]} 74. Rg7 {[%emt 0:00:39]} Rd5 {[%emt 0:00:33]} 75. Re7 {[%emt 0:01:25]} Kg2 {[%emt 0:00:21]} 76. Rg7+ {[%emt 0:00:48]} Kf3 {[%emt 0:00:02]} 77. Rf7+ {[%emt 0:00:31]} Ke3 {[%emt 0:00:15]} 78. Rf8 {[%emt 0:00:43]} Rd4 {[%emt 0:00:38]} 79. Rf7 {[%emt 0:00:27]} Rf4 {[%emt 0:00:21]} 80. Re7+ {[%emt 0:00:23]} Kf3 {[%emt 0:00:08]} 81. Kd2 {[%emt 0:02:08]} f1=Q {[%emt 0:00:30]} 0-1

[Event "FIDE Open Sachove Univerzity QCC"]
[Site "Ceske Budejovice"]
[Date "2020.07.03"]
[Round "3.17"]
[White "Valasek, Jakub"]
[Black "Zezula, Jakub"]
[Result "1/2-1/2"]
[ECO "B01"]
[WhiteElo "1688"]
[BlackElo "1449"]
[Annotator "NA"]
[PlyCount "74"]
[EventDate "2020.07.01"]
[EventType "swiss"]
[EventCountry "CZE"]
[SourceTitle "playchess.com"]
[Source "ChessBase"]
[SourceQuality "1"]
[TimeControl "40/5400+30:1800+30"]

1. e4 {[%emt 0:00:00]} d5 {[%emt 0:00:00]} 2. exd5 {[%emt 0:00:29]} Qxd5 {[%emt 0:00:00]} 3. Nc3 {[%emt 0:00:49]} Qd6 {[%emt 0:00:24]} 4. Nf3 {[%emt 0:01:05]} c6 {[%emt 0:01:00]} 5. d4 {[%emt 0:01:02]} Nf6 {[%emt 0:00:37]} 6. Be2 {[%emt 0:01:09]} Bg4 {[%emt 0:00:24]} 7. h3 {[%emt 0:01:39]} Bh5 {[%emt 0:04:16]} 8. g4 {[%emt 0:02:25]} Bg6 {[%emt 0:01:22]} 9. Ne5 {[%emt 0:01:33]} Nd5 {[%emt 0:08:46]} 10. Nxd5 {[%emt 0:03:29]} Qxd5 {[%emt 0:02:46]} 11. f3 {[%emt 0:02:19]} Nd7 {[%emt 0:04:41]} 12. Bc4 {[%emt 0:06:16]} Qa5+ {[%emt 0:01:26]} 13. Bd2 {[%emt 0:02:49]} Qc7 {[%emt 0:02:18]} 14. Bf4 {[%emt 0:04:07]} Nxe5 {[%emt 0:01:28]} 15. Bxe5 {[%emt 0:02:29]} Qa5+ {[%emt 0:00:52]} 16. Qd2 {[%emt 0:04:59]} Qxd2+ {[%emt 0:02:03]} 17. Kxd2 {[%emt 0:00:18]} f6 {[%emt 0:03:02]} 18. Bg3 {[%emt 0:02:15]} Bf7 {[%emt 0:00:45]} 19. Bxf7+ {[%emt 0:01:59]} Kxf7 {[%emt 0:00:50]} 20. Rad1 {[%emt 0:01:30]} e6 {[%emt 0:01:06]} 21. Kc1 {[%emt 0:02:45]} Rd8 {[%emt 0:06:24]} 22. Rhe1 {[%emt 0:02:32]} Bd6 {[%emt 0:03:02]} 23. Bxd6 {[%emt 0:00:59]} Rxd6 {[%emt 0:00:09]} 24. Re3 {[%emt 0:03:23]} h5 {[%emt 0:04:37]} 25. Ra3 {[%emt 0:03:25]} a6 {[%emt 0:00:09]} 26. Rb3 {[%emt 0:00:22]} Rd7 {[%emt 0:00:09]} 27. Re1 {[%emt 0:02:47]} hxg4 {[%emt 0:01:06]} 28. fxg4 {[%emt 0:02:22]} g5 {[%emt 0:04:39]} 29. Rd3 {[%emt 0:02:41]} f5 {[%emt 0:01:43]} 30. gxf5 {[%emt 0:02:28]} exf5 {[%emt 0:00:10]} 31. c3 {[%emt 0:01:02]} Kf6 {[%emt 0:01:12]} 32. Rde3 {[%emt 0:00:56]} g4 {[%emt 0:01:57]} 33. hxg4 {[%emt 0:00:58]} fxg4 {[%emt 0:00:47]} 34. Rf1+ {[%emt 0:01:32]} Kg5 {[%emt 0:05:07]} 35. Re5+ {[%emt 0:00:41]} Kg6 {[%emt 0:00:41]} 36. Re6+ {[%emt 0:00:30]} Kg5 {[%emt 0:01:24]} 37. Re5+ {[%emt 0:00:42]} Kg6 {[%emt 0:03:07]} 1/2-1/2

[Event "FIDE Open Sachove Univerzity QCC"]
[Site "Ceske Budejovice"]
[Date "2020.07.03"]
[Round "3.18"]
[White "Kanka, Lukas"]
[Black "Gorej, Vojtech"]
[Result "1-0"]
[ECO "E30"]
[WhiteElo "1667"]
[BlackElo "1395"]
[Annotator "NA"]
[PlyCount "67"]
[EventDate "2020.07.01"]
[EventType "swiss"]
[EventCountry "CZE"]
[SourceTitle "playchess.com"]
[Source "ChessBase"]
[SourceQuality "1"]
[TimeControl "40/5400+30:1800+30"]

1. d4 {[%emt 0:00:00]} Nf6 {[%emt 0:04:40]} 2. c4 {[%emt 0:00:15]} e6 {[%emt 0:00:58]} 3. Nc3 {[%emt 0:00:47]} Bb4 {[%emt 0:00:57]} 4. Bg5 {[%emt 0:02:54]} h6 {[%emt 0:01:10]} 5. Bxf6 {[%emt 0:02:03]} Qxf6 {[%emt 0:04:34]} 6. e4 {[%emt 0:00:48]} c5 {[%emt 0:01:40]} 7. e5 {[%emt 0:00:49]} Qe7 {[%emt 0:01:07]} 8. Nf3 {[%emt 0:04:15]} b6 {[%emt 0:01:49]} 9. d5 {[%emt 0:02:09]} Bb7 {[%emt 0:01:54]} 10. d6 {[%emt 0:01:13]} Qd8 {[%emt 0:06:06]} 11. Bd3 {[%emt 0:03:11]} Bxf3 {[%emt 0:03:14]} 12. Qxf3 {[%emt 0:01:30]} Nc6 {[%emt 0:00:19]} 13. Qg3 {[%emt 0:03:20]} Qg5 {[%emt 0:08:20]} 14. Be4 {[%emt 0:04:44]} Qxg3 {[%emt 0:02:07]} 15. hxg3 {[%emt 0:00:39]} Rc8 {[%emt 0:01:26]} 16. Bxc6 {[%emt 0:00:32]} Rxc6 {[%emt 0:00:11]} 17. Rc1 {[%emt 0:00:51]} f6 {[%emt 0:03:37]} 18. f4 {[%emt 0:00:51]} f5 {[%emt 0:04:44]} 19. Ke2 {[%emt 0:01:32]} Bxc3 {[%emt 0:01:20]} 20. bxc3 {[%emt 0:00:56]} Kf7 {[%emt 0:02:11]} 21. Rb1 {[%emt 0:02:50]} Rcc8 {[%emt 0:04:16]} 22. a4 {[%emt 0:04:05]} Rb8 {[%emt 0:01:13]} 23. Rb5 {[%emt 0:09:03]} Rb7 {[%emt 0:04:09]} 24. Rhb1 {[%emt 0:03:06]} Rhb8 {[%emt 0:00:47]} 25. a5 {[%emt 0:00:13]} Rc8 {[%emt 0:01:04]} 26. axb6 {[%emt 0:00:18]} Rxb6 {[%emt 0:00:19]} 27. Ra1 {[%emt 0:01:31]} Rxb5 {[%emt 0:01:43]} 28. cxb5 {[%emt 0:00:05]} c4 {[%emt 0:00:56]} 29. Rxa7 {[%emt 0:00:38]} Ke8 {[%emt 0:00:39]} 30. b6 {[%emt 0:00:24]} Rb8 {[%emt 0:00:14]} 31. b7 {[%emt 0:00:04]} Kf7 {[%emt 0:00:13]} 32. Ke3 {[%emt 0:00:28]} g5 {[%emt 0:00:15]} 33. Kd4 {[%emt 0:00:07]} Kg6 {[%emt 0:00:38]} 34. Kc5 {[%emt 0:00:18]} 1-0

[Event "FIDE Open Sachove Univerzity QCC"]
[Site "Ceske Budejovice"]
[Date "2020.07.03"]
[Round "3.19"]
[White "Smola, David"]
[Black "Svadlenka, Michal"]
[Result "0-1"]
[ECO "B77"]
[WhiteElo "1649"]
[BlackElo "1395"]
[Annotator "NA"]
[PlyCount "60"]
[EventDate "2020.07.01"]
[EventType "swiss"]
[EventCountry "CZE"]
[SourceTitle "playchess.com"]
[Source "ChessBase"]
[SourceQuality "1"]
[TimeControl "40/5400+30:1800+30"]

1. e4 {[%emt 0:00:00]} c5 {[%emt 0:00:00]} 2. Nf3 {[%emt 0:00:09]} d6 {[%emt 0:00:02]} 3. d4 {[%emt 0:00:45]} cxd4 {[%emt 0:00:11]} 4. Nxd4 {[%emt 0:00:11]} Nf6 {[%emt 0:00:28]} 5. Nc3 {[%emt 0:00:35]} g6 {[%emt 0:01:05]} 6. Be3 {[%emt 0:01:38]} Bg7 {[%emt 0:02:09]} 7. Bc4 {[%emt 0:01:37]} O-O {[%emt 0:03:31]} 8. Bb3 {[%emt 0:03:21]} Nc6 {[%emt 0:02:01]} 9. f3 {[%emt 0:02:18]} Bd7 {[%emt 0:01:32]} 10. O-O {[%emt 0:02:44]} Rc8 {[%emt 0:02:58]} 11. Qd2 {[%emt 0:03:12]} Na5 {[%emt 0:02:22]} 12. Rfd1 {[%emt 0:05:40]} Nc4 {[%emt 0:06:15]} 13. Qe2 {[%emt 0:02:50]} Nxb2 {[%emt 0:05:10]} 14. Rdb1 {[%emt 0:04:57]} Rxc3 {[%emt 0:00:24]} 15. Rxb2 {[%emt 0:01:07]} a6 {[%emt 0:04:41]} 16. Qd2 {[%emt 0:04:01]} Qc7 {[%emt 0:13:49]} 17. Rab1 {[%emt 0:04:01]} b5 {[%emt 0:04:08]} 18. Rd1 {[%emt 0:04:13]} Rc8 {[%emt 0:11:26]} 19. Qf2 {[%emt 0:08:09]} Qb7 {[%emt 0:07:18]} 20. Bd2 {[%emt 0:06:00]} R3c5 {[%emt 0:02:20]} 21. Bb4 {[%emt 0:10:46]} R5c7 {[%emt 0:02:21]} 22. Rbb1 {[%emt 0:02:27]} Qa7 {[%emt 0:02:02]} 23. Kf1 {[%emt 0:04:33]} a5 {[%emt 0:01:32]} 24. Bd2 {[%emt 0:02:55]} a4 {[%emt 0:00:31]} 25. Bd5 {[%emt 0:00:17]} Nxd5 {[%emt 0:04:20]} 26. Be3 {[%emt 0:09:24]} Nxe3+ {[%emt 0:02:34]} 27. Qxe3 {[%emt 0:00:12]} Rc4 {[%emt 0:02:02]} 28. Nf5 {[%emt 0:03:07]} Qxe3 {[%emt 0:01:29]} 29. Nxe3 {[%emt 0:00:10]} R4c5 {[%emt 0:02:05]} 30. Nd5 {[%emt 0:00:56]} Kf8 {[%emt 0:00:46]} 0-1

[Event "FIDE Open Sachove Univerzity QCC"]
[Site "Ceske Budejovice"]
[Date "2020.07.03"]
[Round "3.20"]
[White "Havelkova, Beata"]
[Black "Frnoch, Vojtech"]
[Result "1-0"]
[ECO "C09"]
[WhiteElo "1394"]
[BlackElo "1597"]
[Annotator "NA RC"]
[PlyCount "103"]
[EventDate "2020.07.01"]
[EventType "swiss"]
[EventCountry "CZE"]
[SourceTitle "playchess.com"]
[Source "ChessBase"]
[SourceQuality "1"]
[TimeControl "40/5400+30:1800+30"]

1. e4 {[%emt 0:00:00]} e6 {[%emt 0:00:00]} 2. d4 {[%emt 0:00:00]} d5 {[%emt 0:00:00]} 3. Nd2 {[%emt 0:00:01]} c5 {[%emt 0:00:14]} 4. Ngf3 {[%emt 0:01:25]} Nc6 {[%emt 0:01:28]} 5. exd5 {[%emt 0:01:50]} exd5 {[%emt 0:00:39]} 6. Bb5 {[%emt 0:02:06]} a6 {[%emt 0:00:32]} 7. Be2 {[%emt 0:05:43]} cxd4 {[%emt 0:01:54]} 8. Nb3 {[%emt 0:00:59]} Nf6 {[%emt 0:02:02]} 9. Nbxd4 {[%emt 0:02:23]} h6 {[%emt 0:02:50]} 10. O-O {[%emt 0:02:28]} Bc5 {[%emt 0:02:03]} 11. Nb3 {[%emt 0:04:52]} Bb6 {[%emt 0:01:41]} 12. c3 {[%emt 0:02:32]} O-O {[%emt 0:00:50]} 13. Bd3 {[%emt 0:01:28]} Bg4 {[%emt 0:02:11]} 14. Re1 {[%emt 0:10:02]} Re8 {[%emt 0:01:24]} 15. Rxe8+ {[%emt 0:05:12]} Qxe8 {[%emt 0:01:01]} 16. Bf4 {[%emt 0:02:04]} Rd8 {[%emt 0:08:24]} 17. h3 {[%emt 0:06:24]} Bh5 {[%emt 0:01:25]} 18. Be2 {[%emt 0:09:10]} Ne4 {[%emt 0:07:42]} 19. Nbd4 {[%emt 0:06:55]} Bxf3 {[%emt 0:08:14]} 20. Bxf3 {[%emt 0:01:59]} Ne5 {[%emt 0:01:24]} 21. Be3 {[%emt 0:09:07]} Nc4 {[%emt 0:04:40]} 22. Qe2 {[%emt 0:02:08]} Nxe3 {[%emt 0:02:15]} 23. Qxe3 {[%emt 0:00:53]} f5 {[%emt 0:09:47]} 24. Re1 {[%emt 0:04:20]} Qg6 {[%emt 0:07:05]} 25. Qd3 {[%emt 0:05:29]} Kh8 {[%emt 0:01:33]} 26. Kf1 {[%emt 0:02:28]} Bc7 {[%emt 0:05:47]} 27. a3 {[%emt 0:03:55]} Rf8 {[%emt 0:02:19]} 28. Nc2 {[%emt 0:01:52]} Nxf2 {[%emt 0:04:29]} 29. Kxf2 {[%emt 0:01:29]} Qg3+ {[%emt 0:01:47]} 30. Kf1 {[%emt 0:00:37]} Qh2 {[%emt 0:01:15]} 31. Qe3 {[%emt 0:02:13]} f4 {[%emt 0:06:18]} 32. Qg1 {[%emt 0:00:33]} Qg3 {[%emt 0:00:43]} 33. Qf2 {[%emt 0:00:12]} Qg6 {[%emt 0:00:33]} 34. Nd4 {[%emt 0:00:29]} Bb6 {[%emt 0:00:19]} 35. Qc2 {[%emt 0:01:10]} Qg3 {[%emt 0:01:41]} 36. Qf2 {[%emt 0:00:32]} Qg6 {[%emt 0:00:16]} 37. Qc2 {[%emt 0:00:31]} Qg3 {[%emt 0:00:32]} 38. Qf2 {[%emt 0:00:38]} Qg6 {[%emt 0:00:12]} 39. Bg4 {[%emt 0:01:21]} Qd3+ {[%emt 0:02:00]} 40. Be2 {[%emt 0:00:37]} Qg6 {[%emt 0:01:11]} 41. Qf3 {[%emt 0:01:57]} Bd8 {[%emt 0:05:14]} 42. Bd3 {[%emt 0:01:22]} Qd6 {[%emt 0:02:49]} 43. Ne6 {[%emt 0:01:08]} Re8 {[%emt 0:01:10]} 44. Nxd8 {[%emt 0:00:26]} Rxd8 {[%emt 0:00:39]} 45. Qh5 {[%emt 0:01:02]} Qf8 {[%emt 0:03:18]} 46. Qg6 {[%emt 0:02:05]} Qg8 {[%emt 0:00:19]} 47. Re6 {[%emt 0:01:07]} Rf8 {[%emt 0:02:05]} 48. Kf2 {[%emt 0:01:11]} a5 {[%emt 0:01:14]} 49. Rb6 {[%emt 0:01:15]} Rf7 {[%emt 0:02:52]} 50. Bf5 {[%emt 0:00:47]} Re7 {[%emt 0:02:10]} 51. Re6 {[%emt 0:01:11]} Rxe6 {[%emt 0:02:54]} 52. Qxe6 {[%emt 0:00:13]} 1-0

[Event "FIDE Open Sachove Univerzity QCC"]
[Site "Ceske Budejovice"]
[Date "2020.07.03"]
[Round "3.21"]
[White "Tajovsky, Simon"]
[Black "Svejda, Karel"]
[Result "1/2-1/2"]
[ECO "E81"]
[WhiteElo "1594"]
[BlackElo "1387"]
[Annotator "NA"]
[PlyCount "75"]
[EventDate "2020.07.01"]
[EventType "swiss"]
[EventCountry "CZE"]
[SourceTitle "playchess.com"]
[Source "ChessBase"]
[SourceQuality "1"]
[TimeControl "40/5400+30:1800+30"]

1. d4 {[%emt 0:00:57]} Nf6 {[%emt 0:00:00]} 2. c4 {[%emt 0:00:23]} g6 {[%emt 0:00:00]} 3. Nc3 {[%emt 0:00:15]} Bg7 {[%emt 0:00:00]} 4. e4 {[%emt 0:00:08]} d6 {[%emt 0:00:05]} 5. f3 {[%emt 0:00:34]} O-O {[%emt 0:00:30]} 6. Be3 {[%emt 0:00:57]} Nbd7 {[%emt 0:00:26]} 7. Qd2 {[%emt 0:00:58]} c5 {[%emt 0:00:58]} 8. d5 {[%emt 0:00:55]} Qc7 {[%emt 0:05:21]} 9. Be2 {[%emt 0:05:14]} Rd8 {[%emt 0:03:12]} 10. f4 {[%emt 0:03:09]} Nf8 {[%emt 0:09:52]} 11. h3 {[%emt 0:09:06]} a6 {[%emt 0:09:42]} 12. g4 {[%emt 0:08:09]} e6 {[%emt 0:17:38]} 13. a4 {[%emt 0:12:46]} exd5 {[%emt 0:07:20]} 14. cxd5 {[%emt 0:06:40]} Re8 {[%emt 0:04:09]} 15. Qc2 {[%emt 0:03:48]} Qe7 {[%emt 0:05:57]} 16. Bf3 {[%emt 0:04:35]} Rb8 {[%emt 0:09:28]} 17. Qd3 {[%emt 0:07:28]} b5 {[%emt 0:05:25]} 18. axb5 {[%emt 0:02:27]} axb5 {[%emt 0:00:12]} 19. g5 {[%emt 0:00:25]} N6d7 {[%emt 0:00:41]} 20. Nxb5 {[%emt 0:00:40]} Bxb2 {[%emt 0:01:10]} 21. Ra7 {[%emt 0:03:59]} Bb7 {[%emt 0:05:05]} 22. Qb3 {[%emt 0:04:34]} Bxd5 {[%emt 0:03:11]} 23. Qxd5 {[%emt 0:04:03]} Rxb5 {[%emt 0:00:15]} 24. Ne2 {[%emt 0:01:34]} Reb8 {[%emt 0:01:55]} 25. Kf2 {[%emt 0:02:21]} Qe6 {[%emt 0:01:54]} 26. Qd2 {[%emt 0:01:24]} Nb6 {[%emt 0:03:47]} 27. Rd1 {[%emt 0:04:13]} Nc4 {[%emt 0:00:46]} 28. Qd3 {[%emt 0:00:14]} Nxe3 {[%emt 0:00:10]} 29. Qxe3 {[%emt 0:00:25]} Rb3 {[%emt 0:00:42]} 30. Qd2 {[%emt 0:00:22]} R8b6 {[%emt 0:01:59]} 31. e5 {[%emt 0:03:06]} Qxh3 {[%emt 0:01:48]} 32. Bd5 {[%emt 0:00:45]} Qh2+ {[%emt 0:00:34]} 33. Kf1 {[%emt 0:00:18]} Qh3+ {[%emt 0:00:40]} 34. Kf2 {[%emt 0:00:21]} Qh2+ {[%emt 0:00:03]} 35. Kf1 {[%emt 0:00:11]} Qh3+ {[%emt 0:00:28]} 36. Kf2 {[%emt 0:00:08]} Bd4+ {[%emt 0:00:53]} 37. Nxd4 {[%emt 0:01:03]} Qg3+ {[%emt 0:00:27]} 38. Kf1 {[%emt 0:00:26]} 1/2-1/2

[Event "FIDE Open Sachove Univerzity QCC"]
[Site "Ceske Budejovice"]
[Date "2020.07.03"]
[Round "3.22"]
[White "Garabik, Marek"]
[Black "Veselsky, Jan"]
[Result "1/2-1/2"]
[ECO "B12"]
[WhiteElo "1363"]
[BlackElo "1580"]
[Annotator "NA"]
[PlyCount "114"]
[EventDate "2020.07.01"]
[EventType "swiss"]
[EventCountry "CZE"]
[SourceTitle "playchess.com"]
[Source "ChessBase"]
[SourceQuality "1"]
[TimeControl "40/5400+30:1800+30"]

1. e4 {[%emt 0:00:00]} c6 {[%emt 0:00:00]} 2. d4 {[%emt 0:00:29]} d5 {[%emt 0:00:00]} 3. e5 {[%emt 0:00:33]} Bf5 {[%emt 0:00:00]} 4. Nf3 {[%emt 0:00:59]} e6 {[%emt 0:00:00]} 5. c3 {[%emt 0:00:16]} c5 {[%emt 0:00:09]} 6. Bb5+ {[%emt 0:01:28]} Nc6 {[%emt 0:00:25]} 7. Bg5 {[%emt 0:00:56]} Qb6 {[%emt 0:03:42]} 8. Bxc6+ {[%emt 0:02:30]} Qxc6 {[%emt 0:00:12]} 9. Nh4 {[%emt 0:01:09]} Bg6 {[%emt 0:04:44]} 10. Nxg6 {[%emt 0:00:57]} hxg6 {[%emt 0:00:09]} 11. Nd2 {[%emt 0:00:10]} Ne7 {[%emt 0:04:52]} 12. dxc5 {[%emt 0:01:33]} Qxc5 {[%emt 0:00:37]} 13. Nb3 {[%emt 0:00:12]} Qc7 {[%emt 0:00:58]} 14. Qe2 {[%emt 0:02:24]} Nc6 {[%emt 0:00:20]} 15. Bf4 {[%emt 0:02:33]} Be7 {[%emt 0:03:22]} 16. Nd4 {[%emt 0:00:35]} a6 {[%emt 0:00:53]} 17. Rc1 {[%emt 0:03:41]} g5 {[%emt 0:02:12]} 18. Nxc6 {[%emt 0:00:32]} Qxc6 {[%emt 0:01:23]} 19. Be3 {[%emt 0:01:10]} Qc7 {[%emt 0:01:46]} 20. Bd4 {[%emt 0:01:54]} b5 {[%emt 0:01:06]} 21. Qe3 {[%emt 0:01:29]} Rc8 {[%emt 0:09:37]} 22. O-O {[%emt 0:02:13]} O-O {[%emt 0:09:34]} 23. f4 {[%emt 0:01:45]} gxf4 {[%emt 0:05:20]} 24. Qxf4 {[%emt 0:02:06]} Qd8 {[%emt 0:04:18]} 25. Qg4 {[%emt 0:01:15]} b4 {[%emt 0:05:05]} 26. Rf3 {[%emt 0:00:40]} g6 {[%emt 0:09:59]} 27. Rcf1 {[%emt 0:02:04]} bxc3 {[%emt 0:08:00]} 28. bxc3 {[%emt 0:02:01]} Rc4 {[%emt 0:02:47]} 29. g3 {[%emt 0:13:20]} Bg5 {[%emt 0:08:00]} 30. h4 {[%emt 0:01:05]} Bd2 {[%emt 0:05:21]} 31. Rd3 {[%emt 0:00:12]} Bh6 {[%emt 0:01:12]} 32. h5 {[%emt 0:00:13]} Qg5 {[%emt 0:01:14]} 33. Qxg5 {[%emt 0:02:46]} Bxg5 {[%emt 0:00:33]} 34. hxg6 {[%emt 0:00:24]} fxg6 {[%emt 0:00:22]} 35. Rxf8+ {[%emt 0:00:39]} Kxf8 {[%emt 0:00:30]} 36. Rf3+ {[%emt 0:00:31]} Kg7 {[%emt 0:02:02]} 37. Rf2 {[%emt 0:00:30]} Be7 {[%emt 0:02:18]} 38. Rb2 {[%emt 0:01:57]} a5 {[%emt 0:00:53]} 39. Rb7 {[%emt 0:00:48]} Kf8 {[%emt 0:01:28]} 40. Rb6 {[%emt 0:01:19]} Kf7 {[%emt 0:00:35]} 41. Kf1 {[%emt 0:31:56]} Ra4 {[%emt 0:32:38]} 42. Rb7 {[%emt 0:00:50]} Ke8 {[%emt 0:00:00]} 43. Rb2 {[%emt 0:00:00]} Ba3 {[%emt 0:00:00]} 44. Rf2 {[%emt 0:00:00]} Be7 {[%emt 0:00:00]} 45. Kg2 {[%emt 0:00:00]} Rc4 {[%emt 0:00:00]} 46. Rb2 {[%emt 0:00:00]} Kd7 {[%emt 0:00:00]} 47. Rb7+ {[%emt 0:00:00]} Rc7 {[%emt 0:00:00]} 48. Rb2 {[%emt 0:00:00]} Bc5 {[%emt 0:00:00]} 49. Kh3 {[%emt 0:00:00]} a4 {[%emt 0:00:00]} 50. Kg4 {[%emt 0:00:00]} Be7 {[%emt 0:00:00]} 51. Kf4 {[%emt 0:00:00]} Kc6 {[%emt 0:00:00]} 52. Rb6+ {[%emt 0:00:00]} Kd7 {[%emt 0:00:00]} 53. Ke3 {[%emt 0:00:00]} Bc5 {[%emt 0:00:00]} 54. Rb5 {[%emt 0:00:00]} Bxd4+ {[%emt 0:00:38]} 55. cxd4 {[%emt 0:00:00]} Rc3+ {[%emt 0:00:03]} 56. Kf4 {[%emt 0:00:00]} Rd3 {[%emt 0:00:53]} 57. Rb4 {[%emt 0:00:00]} Ra3 {[%emt 0:00:37]} 1/2-1/2

[Event "FIDE Open Sachove Univerzity QCC"]
[Site "Ceske Budejovice"]
[Date "2020.07.03"]
[Round "3.23"]
[White "Kaucky, Jaroslav"]
[Black "Rolinkova, Adela"]
[Result "1-0"]
[ECO "A03"]
[WhiteElo "1573"]
[BlackElo "1360"]
[Annotator "NA"]
[PlyCount "41"]
[EventDate "2020.07.01"]
[EventType "swiss"]
[EventCountry "CZE"]
[SourceTitle "playchess.com"]
[Source "ChessBase"]
[SourceQuality "1"]
[TimeControl "40/5400+30:1800+30"]

1. f4 {[%emt 0:00:00]} d5 {[%emt 0:08:56]} 2. d4 {[%emt 0:00:00]} Nf6 {[%emt 0:00:54]} 3. Nf3 {[%emt 0:00:00]} Nc6 {[%emt 0:00:38]} 4. e3 {[%emt 0:00:12]} Bf5 {[%emt 0:03:31]} 5. Bd3 {[%emt 0:00:32]} Bxd3 {[%emt 0:02:10]} 6. Qxd3 {[%emt 0:00:52]} e6 {[%emt 0:01:10]} 7. Nbd2 {[%emt 0:00:17]} Bd6 {[%emt 0:03:07]} 8. c3 {[%emt 0:01:36]} O-O {[%emt 0:07:00]} 9. Ng5 {[%emt 0:01:42]} h6 {[%emt 0:02:56]} 10. h4 {[%emt 0:00:30]} Re8 {[%emt 0:08:45]} 11. Ndf3 {[%emt 0:01:08]} hxg5 {[%emt 0:18:14]} 12. hxg5 {[%emt 0:00:28]} Ne4 {[%emt 0:00:20]} 13. Nd2 {[%emt 0:00:38]} g6 {[%emt 0:06:43]} 14. Nxe4 {[%emt 0:00:14]} dxe4 {[%emt 0:00:08]} 15. Qxe4 {[%emt 0:00:29]} Kg7 {[%emt 0:01:33]} 16. Bd2 {[%emt 0:00:24]} Rh8 {[%emt 0:01:31]} 17. O-O-O {[%emt 0:00:03]} Be7 {[%emt 0:01:34]} 18. c4 {[%emt 0:01:09]} Qd7 {[%emt 0:05:40]} 19. d5 {[%emt 0:03:19]} Bb4 {[%emt 0:05:22]} 20. Bxb4 {[%emt 0:05:39]} Rxh1 {[%emt 0:02:23]} 21. Rxh1 {[%emt 0:00:28]} 1-0